fUST/lending_fUST_20240824
["ID","MTS","AMOUNT","RATE_DAILY","PERIOD"]
[335752154,1724477441060,-500.11097897,0.00013698,2]
[335752155,1724477441070,-500.0,0.00013698,2]
[335752156,1724477441080,-503.35788423,0.00013698,2]
[335752157,1724477441091,-500.0,0.00013698,2]
[335752158,1724477441101,-260.00000007,0.00013698,2]
[335752159,1724477441111,-500.0,0.00013698,2]
[335752160,1724477441121,-500.0,0.00013698,2]
[335752161,1724477441133,-500.0,0.00013698,2]
[335752162,1724477441146,-581.01,0.00013698,2]
[335752163,1724477441157,-500.0,0.00013698,2]
[335752164,1724477441167,-500.0,0.00013698,2]
[335752165,1724477441177,-500.0,0.00013698,2]
[335752166,1724477441447,-635.83,0.00013698,2]
[335752167,1724477441460,-478.95369614,0.00013698,2]
[335752168,1724477441469,-752.09,0.00013698,2]
[335752169,1724477441489,-834.48,0.00013698,2]
[335752170,1724477441501,-500.0,0.00013698,2]
[335752171,1724477441515,-559.02,0.00013698,2]
[335752172,1724477441525,-500.0,0.00013698,2]
[335752173,1724477441536,-500.0,0.00013698,2]
[335752174,1724477441545,-1036.11,0.00013698,2]
[335752175,1724477441555,-542.47,0.00013698,2]
[335752176,1724477441564,-500.0,0.00013698,2]
[335752177,1724477441574,-983.06,0.00013698,2]
[335752178,1724477441584,-500.0,0.00013698,2]
[335752179,1724477441594,-566.24,0.00013698,2]
[335752180,1724477441604,-305.24911577,0.00013698,2]
[335752181,1724477441614,-500.0,0.00013698,2]
[335752182,1724477441623,-500.0,0.00013698,2]
[335752183,1724477441633,-500.0,0.00013698,2]
[335752184,1724477441642,-500.0,0.00013698,2]
[335752185,1724477441651,-500.0,0.00013698,2]
[335752186,1724477441661,-1636.85,0.00013698,2]
[335752187,1724477441671,-500.0,0.00013698,2]
[335752188,1724477441680,-500.0,0.00013698,2]
[335752189,1724477441690,-500.0,0.00013698,2]
[335752190,1724477441700,-500.0,0.00013698,2]
[335752191,1724477441709,-500.0,0.00013698,2]
[335752192,1724477441719,-857.88,0.00013698,2]
[335752193,1724477441729,-500.0,0.00013698,2]
[335752194,1724477441739,-500.0,0.00013698,2]
[335752195,1724477441748,-500.0,0.00013698,2]
[335752196,1724477441760,-592.07,0.00013698,2]
[335752197,1724477441769,-1147.48,0.00013698,2]
[335752198,1724477441778,-500.0,0.00013698,2]
[335752199,1724477441788,-500.0,0.00013698,2]
[335752200,1724477441798,-500.0,0.00013698,2]
[335752201,1724477441808,-500.0,0.00013698,2]
[335752202,1724477441818,-500.0,0.00013698,2]
[335752203,1724477441829,-500.0,0.00013698,2]
[335752204,1724477441838,-500.0,0.00013698,2]
[335752205,1724477441848,-500.0,0.00013698,2]
[335752206,1724477441857,-755.69,0.00013698,2]
[335752207,1724477441868,-500.0,0.00013698,2]
[335752208,1724477441877,-500.0,0.00013698,2]
[335752209,1724477441887,-500.0,0.00013698,2]
[335752210,1724477441897,-500.0,0.00013698,2]
[335752211,1724477441906,-500.0,0.00013698,2]
[335752212,1724477441916,-500.0,0.00013698,2]
[335752213,1724477441925,-500.0,0.00013698,2]
[335752214,1724477441935,-500.0,0.00013698,2]
[335752215,1724477441945,-500.0,0.00013698,2]
[335752216,1724477441954,-500.0,0.00013698,2]
[335752217,1724477441963,-500.0,0.00013698,2]
[335752218,1724477441973,-500.0,0.00013698,2]
[335752219,1724477441982,-500.0,0.00013698,2]
[335752220,1724477441992,-501.86672795,0.00013698,2]
[335752221,1724477442002,-525.97,0.00013698,2]
[335752222,1724477442012,-500.0,0.00013698,2]
[335752223,1724477442022,-253.09911784,0.00013698,2]
[335752224,1724477442032,-500.0,0.00013698,2]
[335752225,1724477442043,-500.0,0.00013698,2]
[335752226,1724477442055,-315.43926399,0.00013698,2]
[335752227,1724477442067,-500.0,0.00013698,2]
[335752228,1724477442077,-909.32,0.00013698,2]
[335752229,1724477442092,-500.0,0.00013698,2]
[335752230,1724477442104,-963.71,0.00013698,2]
[335752231,1724477442115,-500.0,0.00013698,2]
[335752232,1724477442127,-500.0,0.00013698,2]
[335752233,1724477442139,-963.71,0.00013698,2]
[335752234,1724477442149,-500.0,0.00013698,2]
[335752235,1724477442160,-963.71,0.00013698,2]
[335752236,1724477442169,-963.71,0.00013698,2]
[335752237,1724477442181,-963.71,0.00013698,2]
[335752238,1724477442191,-963.71,0.00013698,2]
[335752239,1724477442203,-963.71,0.00013698,2]
[335752240,1724477442215,-963.71,0.00013698,2]
[335752241,1724477442226,-963.71,0.00013698,2]
[335752242,1724477442238,-963.71,0.00013698,2]
[335752243,1724477442248,-963.71,0.00013698,2]
[335752244,1724477442259,-500.0,0.00013698,2]
[335752245,1724477442270,-963.71,0.00013698,2]
[335752246,1724477442280,-500.0,0.00013698,2]
[335752247,1724477442291,-963.71,0.00013698,2]
[335752248,1724477442302,-963.71,0.00013698,2]
[335752249,1724477442314,-748.81,0.00013698,2]
[335752250,1724477442325,-963.71,0.00013698,2]
[335752251,1724477442337,-963.71,0.00013698,2]
[335752252,1724477442348,-963.71,0.00013698,2]
[335752253,1724477442358,-963.71,0.00013698,2]
[335752254,1724477442369,-963.71,0.00013698,2]
[335752255,1724477442378,-500.0,0.00013698,2]
[335752256,1724477442388,-963.71,0.00013698,2]
[335752257,1724477442398,-963.71,0.00013698,2]
[335752258,1724477442408,-705.74,0.00013698,2]
[335752259,1724477442418,-963.71,0.00013698,2]
[335752260,1724477442428,-963.71,0.00013698,2]
[335752261,1724477442438,-908.4,0.00013698,2]
[335752262,1724477442448,-963.72454486,0.00013698,2]
[335752263,1724477442459,-500.0,0.00013698,2]
[335752264,1724477442468,-500.0,0.00013698,2]
[335752265,1724477442478,-500.0,0.00013698,2]
[335752266,1724477442488,-500.0,0.00013698,2]
[335752267,1724477442499,-500.0,0.00013698,2]
[335752268,1724477442510,-1087.91,0.00013698,2]
[335752269,1724477442525,-500.0,0.00013698,2]
[335752270,1724477442536,-500.0,0.00013698,2]
[335752271,1724477442546,-1008.51,0.00013698,2]
[335752272,1724477442557,-500.0,0.00013698,2]
[335752273,1724477442567,-500.0,0.00013698,2]
[335752274,1724477442577,-500.0,0.00013698,2]
[335752275,1724477442586,-2422.01,0.00013698,2]
[335752276,1724477442596,-500.0,0.00013698,2]
[335752277,1724477442606,-500.0,0.00013698,2]
[335752278,1724477442616,-500.0,0.00013698,2]
[335752279,1724477442626,-500.0,0.00013698,2]
[335752280,1724477442635,-500.51934936,0.00013698,2]
[335752281,1724477442645,-500.0,0.00013698,2]
[335752282,1724477442655,-886.51,0.00013698,2]
[335752283,1724477442664,-517.12,0.00013698,2]
[335752284,1724477442674,-500.0,0.00013698,2]
[335752285,1724477442683,-388.01515087,0.00013698,2]
[335752286,1724477442693,-524.10641745,0.00013698,2]
[335752287,1724477442702,-500.0,0.00013698,2]
[335752288,1724477442712,-500.0,0.00013698,2]
[335752289,1724477442721,-500.0,0.00013698,2]
[335752290,1724477442731,-500.0,0.00013698,2]
[335752291,1724477442741,-500.0,0.00013698,2]
[335752292,1724477442751,-500.0,0.00013698,2]
[335752293,1724477442761,-1081.07,0.00013698,2]
[335752294,1724477442772,-682.65,0.00013698,2]
[335752295,1724477442783,-2195.88,0.00013698,2]
[335752296,1724477442795,-258.8,0.00013698,2]
[335752297,1724477442805,-692.15,0.00013698,2]
[335752298,1724477442816,-258.0,0.00013698,2]
[335752299,1724477442826,-500.0,0.00013698,2]
[335752301,1724477442836,-580.44,0.00013698,2]
[335752303,1724477442847,-501.35155916,0.00013698,2]
[335752304,1724477442857,-524.03413021,0.00013698,2]
[335752305,1724477442868,-500.0,0.00013698,2]
[335752306,1724477442878,-260.0,0.00013698,2]
[335752307,1724477442888,-3141.46,0.00013698,2]
[335752308,1724477442898,-1060.76,0.00013698,2]
[335752309,1724477442908,-500.0,0.00013698,2]
[335752310,1724477442918,-1081.36,0.00013698,2]
[335752312,1724477442928,-500.0,0.00013698,2]
[335752314,1724477442937,-500.0,0.00013698,2]
[335752316,1724477442947,-500.0,0.00013698,2]
[335752318,1724477442957,-500.0,0.00013698,2]
[335752320,1724477442967,-500.0,0.00013698,2]
[335752321,1724477442977,-260.0,0.00013698,2]
[335752322,1724477442988,-500.0,0.00013698,2]
[335752323,1724477442998,-500.0,0.00013698,2]
[335752324,1724477443008,-500.0,0.00013698,2]
[335752325,1724477443017,-500.0,0.00013698,2]
[335752326,1724477443027,-500.0,0.00013698,2]
[335752327,1724477443037,-258.0,0.00013698,2]
[335752328,1724477443046,-500.64056354,0.00013698,2]
[335752329,1724477443057,-710.57,0.00013698,2]
[335752330,1724477443069,-500.0,0.00013698,2]
[335752332,1724477443078,-500.0,0.00013698,2]
[335752333,1724477443088,-500.0,0.00013698,2]
[335752334,1724477443099,-500.0,0.00013698,2]
[335752335,1724477443109,-500.0,0.00013698,2]
[335752336,1724477443119,-500.0,0.00013698,2]
[335752337,1724477443129,-500.0,0.00013698,2]
[335752338,1724477443142,-500.0,0.00013698,2]
[335752339,1724477443151,-500.0,0.00013698,2]
[335752340,1724477443161,-500.0,0.00013698,2]
[335752341,1724477443171,-853.32,0.00013698,2]
[335752342,1724477443180,-500.0,0.00013698,2]
[335752343,1724477443190,-500.0,0.00013698,2]
[335752344,1724477443199,-500.0,0.00013698,2]
[335752345,1724477443210,-500.0,0.00013698,2]
[335752346,1724477443221,-500.0,0.00013698,2]
[335752347,1724477443232,-500.0,0.00013698,2]
[335752348,1724477443242,-500.0,0.00013698,2]
[335752349,1724477443252,-500.0,0.00013698,2]
[335752350,1724477443264,-500.0,0.00013698,2]
[335752351,1724477443274,-500.0,0.00013698,2]
[335752352,1724477443284,-1223.34,0.00013698,2]
[335752353,1724477443295,-777.45,0.00013698,2]
[335752354,1724477443305,-542.26,0.00013698,2]
[335752355,1724477443315,-500.0,0.00013698,2]
[335752356,1724477443326,-651.53,0.00013698,2]
[335752357,1724477443337,-651.53,0.00013698,2]
[335752358,1724477443348,-651.53,0.00013698,2]
[335752359,1724477443359,-443.15499385,0.00013698,2]
[335752360,1724477443369,-651.53,0.00013698,2]
[335752361,1724477443381,-651.53,0.00013698,2]
[335752362,1724477443391,-651.53,0.00013698,2]
[335752363,1724477443413,-651.53,0.00013698,2]
[335752364,1724477443425,-651.53,0.00013698,2]
[335752365,1724477443436,-500.0,0.00013698,2]
[335752366,1724477443447,-651.53,0.00013698,2]
[335752367,1724477443459,-500.0,0.00013698,2]
[335752368,1724477443469,-794.74,0.00013698,2]
[335752369,1724477443479,-500.0,0.00013698,2]
[335752370,1724477443488,-2950.98,0.00013698,2]
[335752371,1724477443498,-500.0,0.00013698,2]
[335752372,1724477443510,-500.0,0.00013698,2]
[335752373,1724477443520,-500.0,0.00013698,2]
[335752374,1724477443531,-579.99,0.00013698,2]
[335752375,1724477443542,-500.0,0.00013698,2]
[335752376,1724477443552,-742.77,0.00013698,2]
[335752377,1724477443563,-526.58,0.00013698,2]
[335752378,1724477443574,-541.65,0.00013698,2]
[335752379,1724477443585,-506.51205124,0.00013698,2]
[335752380,1724477443594,-1236.94,0.00013698,2]
[335752381,1724477443605,-555.95,0.00013698,2]
[335752382,1724477443615,-500.0,0.00013698,2]
[335752383,1724477443626,-504.19437505,0.00013698,2]
[335752384,1724477443636,-500.0,0.00013698,2]
[335752385,1724477443649,-746.43,0.00013698,2]
[335752386,1724477443661,-500.0,0.00013698,2]
[335752387,1724477443672,-2079.76,0.00013698,2]
[335752388,1724477443683,-500.0,0.00013698,2]
[335752389,1724477443693,-500.0,0.00013698,2]
[335752390,1724477443704,-500.0,0.00013698,2]
[335752391,1724477443717,-500.0,0.00013698,2]
[335752392,1724477443728,-500.0,0.00013698,2]
[335752393,1724477443739,-500.0,0.00013698,2]
[335752394,1724477443751,-915.72,0.00013698,2]
[335752395,1724477443763,-500.9895342,0.00013698,2]
[335752396,1724477443774,-500.0,0.00013698,2]
[335752397,1724477443784,-500.0,0.00013698,2]
[335752398,1724477443795,-579.89,0.00013698,2]
[335752399,1724477443807,-500.0,0.00013698,2]
[335752400,1724477443818,-500.0,0.00013698,2]
[335752401,1724477443828,-500.0,0.00013698,2]
[335752402,1724477443840,-500.0,0.00013698,2]
[335752403,1724477443851,-500.0,0.00013698,2]
[335752404,1724477443862,-1414.6,0.00013698,2]
[335752405,1724477443872,-617.3,0.00013698,2]
[335752406,1724477443883,-500.0,0.00013698,2]
[335752407,1724477443894,-500.0,0.00013698,2]
[335752408,1724477443905,-177.59616055,0.00013698,2]
[335752409,1724477443916,-500.77864388,0.00013698,2]
[335752410,1724477443927,-500.0,0.00013698,2]
[335752411,1724477443937,-500.0,0.00013698,2]
[335752412,1724477443949,-500.0,0.00013698,2]
[335752413,1724477443960,-500.0,0.00013698,2]
[335752414,1724477443970,-500.0,0.00013698,2]
[335752415,1724477443980,-500.0,0.00013698,2]
[335752416,1724477443990,-451.02923329,0.00013698,2]
[335752417,1724477443999,-500.0,0.00013698,2]
[335752418,1724477444009,-927.54,0.00013698,2]
[335752419,1724477444018,-500.0,0.00013698,2]
[335752420,1724477444028,-518.31460666,0.00013698,2]
[335752421,1724477444038,-1441.37,0.00013698,2]
[335752422,1724477444047,-500.0,0.00013698,2]
[335752423,1724477444060,-500.0,0.00013698,2]
[335752424,1724477444070,-500.0,0.00013698,2]
[335752425,1724477444080,-500.0,0.00013698,2]
[335752426,1724477444090,-500.0,0.00013698,2]
[335752427,1724477444100,-500.0,0.00013698,2]
[335752428,1724477444110,-500.0,0.00013698,2]
[335752429,1724477444119,-500.0,0.00013698,2]
[335752430,1724477444130,-500.0,0.00013698,2]
[335752431,1724477444141,-500.0,0.00013698,2]
[335752432,1724477444152,-500.0,0.00013698,2]
[335752433,1724477444162,-500.0,0.00013698,2]
[335752434,1724477444171,-500.0,0.00013698,2]
[335752435,1724477444180,-500.0,0.00013698,2]
[335752436,1724477444190,-500.0,0.00013698,2]
[335752437,1724477444199,-500.0,0.00013698,2]
[335752438,1724477444209,-500.0,0.00013698,2]
[335752439,1724477444219,-528.3863952,0.00013698,2]
[335752440,1724477444229,-500.0,0.00013698,2]
[335752441,1724477444239,-500.0,0.00013698,2]
[335752442,1724477444249,-500.0,0.00013698,2]
[335752443,1724477444259,-500.0,0.00013698,2]
[335752444,1724477444268,-500.0,0.00013698,2]
[335752445,1724477444278,-447.60060409,0.00013698,2]
[335752446,1724477444288,-293.91923949,0.00013698,2]
[335752447,1724477444297,-500.0,0.00013698,2]
[335752448,1724477444307,-1461.56,0.00013698,2]
[335752449,1724477444316,-757.15,0.00013698,2]
[335752450,1724477444326,-500.0,0.00013698,2]
[335752451,1724477444335,-500.0,0.00013698,2]
[335752452,1724477444345,-500.0,0.00013698,2]
[335752453,1724477444355,-500.0,0.00013698,2]
[335752454,1724477444365,-1725.52,0.00013698,2]
[335752455,1724477444375,-504.91863653,0.00013698,2]
[335752456,1724477444384,-957.88,0.00013698,2]
[335752457,1724477444395,-500.0,0.00013698,2]
[335752458,1724477444407,-500.0,0.00013698,2]
[335752459,1724477444419,-500.0,0.00013698,2]
[335752460,1724477444430,-2094.46,0.00013698,2]
[335752461,1724477444441,-546.66878442,0.00013698,2]
[335752462,1724477444452,-500.0,0.00013698,2]
[335752463,1724477444463,-614.85,0.00013698,2]
[335752464,1724477444474,-500.0,0.00013698,2]
[335752465,1724477444484,-500.0,0.00013698,2]
[335752466,1724477444496,-500.0,0.00013698,2]
[335752467,1724477444506,-533.05,0.00013698,2]
[335752468,1724477444522,-747.06,0.00013698,2]
[335752469,1724477444535,-3002.73,0.00013698,2]
[335752470,1724477444544,-500.0,0.00013698,2]
[335752471,1724477444555,-500.0,0.00013698,2]
[335752472,1724477444566,-964.75,0.00013698,2]
[335752473,1724477444575,-500.0,0.00013698,2]
[335752474,1724477444585,-1178.24,0.00013698,2]
[335752475,1724477444595,-1634.1,0.00013698,2]
[335752476,1724477444604,-509.13136748,0.00013698,2]
[335752477,1724477444614,-728.39,0.00013698,2]
[335752478,1724477444623,-575.68528405,0.00013698,2]
[335752479,1724477444633,-500.0,0.00013698,2]
[335752480,1724477444642,-1196.77,0.00013698,2]
[335752481,1724477444652,-937.3,0.00013698,2]
[335752482,1724477444661,-710.82,0.00013698,2]
[335752483,1724477444671,-1068.44,0.00013698,2]
[335752484,1724477444681,-1201.76,0.00013698,2]
[335752485,1724477444691,-232.57120854,0.00013698,2]
[335752486,1724477444700,-500.0,0.00013698,2]
[335752487,1724477444710,-500.0,0.00013698,2]
[335752488,1724477444723,-372.73170538,0.00013698,2]
[335752489,1724477444733,-1987.22,0.00013698,2]
[335752490,1724477444743,-524.57444368,0.00013698,2]
[335752491,1724477444755,-500.0,0.00013698,2]
[335752492,1724477444766,-1389.78,0.00013698,2]
[335752493,1724477444778,-858.76,0.00013698,2]
[335752494,1724477444789,-500.0,0.00013698,2]
[335752495,1724477444801,-500.0,0.00013698,2]
[335752496,1724477444811,-500.0,0.00013698,2]
[335752497,1724477444821,-500.0,0.00013698,2]
[335752498,1724477444831,-500.0,0.00013698,2]
[335752499,1724477444840,-542.60168054,0.00013698,2]
[335752500,1724477444850,-500.0,0.00013698,2]
[335752501,1724477444860,-500.0,0.00013698,2]
[335752502,1724477444870,-1527.48,0.00013698,2]
[335752503,1724477444880,-1202.52,0.00013698,2]
[335752504,1724477444890,-523.87,0.00013698,2]
[335752505,1724477444900,-428.33560529,0.00013698,2]
[335752506,1724477444909,-500.0,0.00013698,2]
[335752507,1724477444919,-500.0,0.00013698,2]
[335752508,1724477444929,-846.49,0.00013698,2]
[335752509,1724477444938,-500.0,0.00013698,2]
[335752510,1724477444948,-500.0,0.00013698,2]
[335752511,1724477444957,-500.0,0.00013698,2]
[335752512,1724477444968,-500.0,0.00013698,2]
[335752513,1724477444977,-500.0,0.00013698,2]
[335752514,1724477444987,-688.79,0.00013698,2]
[335752515,1724477444997,-500.0,0.00013698,2]
[335752516,1724477445007,-527.63769833,0.00013698,2]
[335752517,1724477445017,-500.0,0.00013698,2]
[335752518,1724477445026,-500.0,0.00013698,2]
[335752519,1724477445037,-1047.9,0.00013698,2]
[335752520,1724477445046,-1156.42,0.00013698,2]
[335752521,1724477445057,-500.0,0.00013698,2]
[335752522,1724477445068,-684.22,0.00013698,2]
[335752523,1724477445078,-808.88,0.00013698,2]
[335752524,1724477445087,-500.0,0.00013698,2]
[335752525,1724477445096,-500.0,0.00013698,2]
[335752526,1724477445106,-500.0,0.00013698,2]
[335752527,1724477445115,-500.0,0.00013698,2]
[335752528,1724477445125,-682.7,0.00013698,2]
[335752529,1724477445135,-500.0,0.00013698,2]
[335752530,1724477445145,-500.0,0.00013698,2]
[335752531,1724477445154,-500.0,0.00013698,2]
[335752532,1724477445167,-500.0,0.00013698,2]
[335752533,1724477445176,-500.0,0.00013698,2]
[335752534,1724477445186,-531.27393272,0.00013698,2]
[335752535,1724477445196,-1362.48,0.00013698,2]
[335752536,1724477445205,-1618.54,0.00013698,2]
[335752537,1724477445215,-500.0,0.00013698,2]
[335752538,1724477445224,-500.0,0.00013698,2]
[335752539,1724477445234,-1236.59,0.00013698,2]
[335752540,1724477445243,-511.99630393,0.00013698,2]
[335752541,1724477445253,-704.2,0.00013698,2]
[335752542,1724477445264,-500.0,0.00013698,2]
[335752543,1724477445274,-1217.36,0.00013698,2]
[335752544,1724477445284,-500.0,0.00013698,2]
[335752545,1724477445293,-500.0,0.00013698,2]
[335752546,1724477445303,-500.0,0.00013698,2]
[335752547,1724477445312,-500.0,0.00013698,2]
[335752548,1724477445549,-2142.23,0.00013698,2]
[335752549,1724477445560,-442.44977797,0.00013698,2]
[335752550,1724477445569,-500.0,0.00013698,2]
[335752551,1724477445579,-1336.64,0.00013698,2]
[335752552,1724477445588,-500.0,0.00013698,2]
[335752553,1724477445597,-675.9,0.00013698,2]
[335752554,1724477445607,-500.0,0.00013698,2]
[335752555,1724477445616,-500.0,0.00013698,2]
[335752556,1724477445626,-500.0,0.00013698,2]
[335752557,1724477445635,-377.1852082,0.00013698,2]
[335752558,1724477445644,-546.62,0.00013698,2]
[335752559,1724477445653,-500.0,0.00013698,2]
[335752560,1724477445662,-500.0,0.00013698,2]
[335752561,1724477445672,-500.0,0.00013698,2]
[335752562,1724477445681,-894.63,0.00013698,2]
[335752563,1724477445690,-732.18,0.00013698,2]
[335752564,1724477445699,-500.0,0.00013698,2]
[335752565,1724477445708,-500.0,0.00013698,2]
[335752566,1724477445718,-500.0,0.00013698,2]
[335752567,1724477445726,-500.0,0.00013698,2]
[335752568,1724477445736,-500.0,0.00013698,2]
[335752569,1724477445745,-500.0,0.00013698,2]
[335752570,1724477445754,-500.0,0.00013698,2]
[335752571,1724477445764,-591.76,0.00013698,2]
[335752572,1724477445773,-548.95,0.00013698,2]
[335752573,1724477445782,-500.0,0.00013698,2]
[335752574,1724477445791,-503.17953657,0.00013698,2]
[335752575,1724477445800,-999.64,0.00013698,2]
[335752576,1724477445810,-500.0,0.00013698,2]
[335752577,1724477445820,-500.0,0.00013698,2]
[335752578,1724477445830,-500.0,0.00013698,2]
[335752579,1724477445839,-1134.43,0.00013698,2]
[335752580,1724477445849,-1222.74,0.00013698,2]
[335752581,1724477445859,-500.0,0.00013698,2]
[335752582,1724477445868,-500.0,0.00013698,2]
[335752583,1724477445878,-579.44,0.00013698,2]
[335752584,1724477445890,-1006.46,0.00013698,2]
[335752585,1724477445902,-500.0,0.00013698,2]
[335752586,1724477445913,-778.16,0.00013698,2]
[335752587,1724477445924,-500.0,0.00013698,2]
[335752588,1724477445934,-500.0,0.00013698,2]
[335752589,1724477445946,-1490.72,0.00013698,2]
[335752590,1724477445957,-562.59,0.00013698,2]
[335752591,1724477445967,-634.96,0.00013698,2]
[335752592,1724477445979,-1764.84,0.00013698,2]
[335752593,1724477445990,-539.9,0.00013698,2]
[335752594,1724477446000,-500.0,0.00013698,2]
[335752595,1724477446010,-500.0,0.00013698,2]
[335752596,1724477446020,-1050.78,0.00013698,2]
[335752597,1724477446029,-1072.54,0.00013698,2]
[335752598,1724477446038,-2169.38,0.00013698,2]
[335752599,1724477446047,-1296.03,0.00013698,2]
[335752600,1724477446059,-809.75,0.00013698,2]
[335752601,1724477446069,-1206.21,0.00013698,2]
[335752602,1724477446078,-1717.39,0.00013698,2]
[335752603,1724477446088,-789.14,0.00013698,2]
[335752604,1724477446097,-695.83,0.00013698,2]
[335752605,1724477446106,-500.0,0.00013698,2]
[335752606,1724477446116,-2316.31,0.00013698,2]
[335752607,1724477446125,-1000.0,0.00013698,2]
[335752608,1724477446136,-2008.54,0.00013698,2]
[335752609,1724477446146,-678.32,0.00013698,2]
[335752610,1724477446156,-500.0,0.00013698,2]
[335752611,1724477446165,-827.04,0.00013698,2]
[335752612,1724477446175,-500.0,0.00013698,2]
[335752613,1724477446185,-1539.73,0.00013698,2]
[335752614,1724477446195,-500.0,0.00013698,2]
[335752615,1724477446205,-500.0,0.00013698,2]
[335752616,1724477446215,-590.28,0.00013698,2]
[335752617,1724477446226,-500.0,0.00013698,2]
[335752618,1724477446236,-181.06987993,0.00013698,2]
[335752619,1724477446245,-12403.74,0.00013698,2]
[335752620,1724477446255,-500.0,0.00013698,2]
[335752621,1724477446268,-501.2626616,0.00013698,2]
[335752622,1724477446278,-3858.99,0.00013698,2]
[335752623,1724477446288,-500.0,0.00013698,2]
[335752624,1724477446298,-806.38,0.00013698,2]
[335752625,1724477446308,-806.38,0.00013698,2]
[335752626,1724477446318,-806.38,0.00013698,2]
[335752627,1724477446328,-806.38,0.00013698,2]
[335752628,1724477446338,-806.38,0.00013698,2]
[335752629,1724477446348,-806.38,0.00013698,2]
[335752630,1724477446358,-500.0,0.00013698,2]
[335752631,1724477446368,-500.0,0.00013698,2]
[335752632,1724477446378,-806.38,0.00013698,2]
[335752633,1724477446387,-501.92089951,0.00013698,2]
[335752634,1724477446397,-806.38,0.00013698,2]
[335752635,1724477446406,-806.38,0.00013698,2]
[335752636,1724477446416,-806.38,0.00013698,2]
[335752637,1724477446425,-500.0,0.00013698,2]
[335752638,1724477446435,-806.38,0.00013698,2]
[335752639,1724477446444,-3278.81,0.00013698,2]
[335752640,1724477446454,-806.38,0.00013698,2]
[335752641,1724477446463,-1893.4,0.00013698,2]
[335752642,1724477446473,-806.38,0.00013698,2]
[335752643,1724477446483,-501.54686121,0.00013698,2]
[335752644,1724477446492,-806.38,0.00013698,2]
[335752645,1724477446503,-806.38,0.00013698,2]
[335752646,1724477446513,-806.38,0.00013698,2]
[335752647,1724477446526,-806.38,0.00013698,2]
[335752648,1724477446535,-500.0,0.00013698,2]
[335752649,1724477446545,-500.0,0.00013698,2]
[335752650,1724477446554,-1017.25,0.00013698,2]
[335752651,1724477446563,-2101.35,0.00013698,2]
[335752652,1724477446573,-2416.53,0.00013698,2]
[335752653,1724477446583,-2416.53,0.00013698,2]
[335752654,1724477446593,-771.07,0.00013698,2]
[335752655,1724477446604,-2416.53,0.00013698,2]
[335752656,1724477446616,-2416.53,0.00013698,2]
[335752657,1724477446627,-2416.53,0.00013698,2]
[335752658,1724477446638,-2416.53,0.00013698,2]
[335752659,1724477446648,-2416.53,0.00013698,2]
[335752660,1724477446659,-2416.53,0.00013698,2]
[335752661,1724477446668,-2416.53,0.00013698,2]